Workbook

Sheet Общая информация
A1: Наименование организации: | E1: Муниципальное бюджетное общеобразовательное учреждение средняя общеобразовательная школа № 13 имени Героя Советского Союза Г.К.Кулика муниципального образования Тимашевский район
A4: СГОЗ (общий) | C4: 20376735.19 | E4: п.4 (10% от СГОЗ или 2 000 000) | H4: 2000000 | L4: п.5 (50% СГОЗ) | M4: =(C4*50)/100 -> 10188367.6
A5: СГОЗ (остаток) | C5: =C4-G15+J15 -> 8874026.52 | E5: п.4 (остаток) | H5: =H4-G12 -> 1120472.3 | L5: п.5 (остаток) | M5: =M4-G13 -> 7399022.475
A8: Способ определения поставщика (подрядчика, исполнителя) | D8: Начальная (максимальная) цена контракта | G8: Фактическая цена контракта | J8: Расторжение контракта по соглашению сторон | M8: Экономия
A9: Состоявшиеся аукционы | D9: ='Состоявшиеся аукционы'!G2 -> 740880 | G9: ='Состоявшиеся аукционы'!Q2 -> 674200.8 | J9: ='Состоявшиеся аукционы'!AB2 -> 0 | M9: =D9-G9 -> 66679.2
A10: Несостоявшиеся аукционы | D10: ='Несостоявшиеся аукционы'!G2 -> 3314740 | G10: ='Несостоявшиеся аукционы'!Q2 -> 3314740 | J10: ='Несостоявшиеся аукционы'!AB2 -> 0 | M10: 0
A11: Иные конкурентные закупки | D11: ='Иные конкурентные закупки'!G2 -> 0 | G11: ='Иные конкурентные закупки'!Q2 -> 0 | J11: ='Иные конкурентные закупки'!AB2 -> 0 | M11: 0
A12: Ед. поставщик п.4 ч.1 | D12: ='Ед. поставщик п.4 ч.1'!H2 -> 879527.7 | G12: =D12 -> 879527.7 | J12: ='Ед. поставщик п.4 ч.1'!V2 -> 0 | M12: 0
A13: Ед. поставщик п. 5 ч. 1 | D13: ='Ед. поставщик п.5 ч.1'!H2 -> 2789345.12 | G13: =D13 -> 2789345.12 | J13: ='Ед. поставщик п.5 ч.1'!V2 -> 0 | M13: 0
A14: Ед.поставщик за искл. п.4,5 ч.1 | D14: ='Ед.поставщик за искл. п.4,5 ч.1'!G2 -> 3844895.05 | G14: =D14 -> 3844895.05 | J14: ='Ед.поставщик за искл. п.4,5 ч.1'!T2 -> 0 | M14: 0
A15: Всего | D15: =SUM(D9:D14) -> 11569387.87 | G15: =SUM(G9:G14) -> 11502708.67 | J15: =SUM(J9:J14) -> 0 | M15: 66679.2
A19: Всего средств потрачено по заключенным контрактам | D19: ='Ед. поставщик п.4 ч.1'!P2+'Ед. поставщик п.5 ч.1'!P2+'Ед.поставщик за искл. п.4,5 ч.1'!N2+'Состоявшиеся аукционы'!V2+'Несостоявшиеся аукционы'!V2+'Иные конкурентные закупки'!V2 -> 3842427.6

Sheet Ед. поставщик п.4 ч.1
G2: Сумма заключенных контрактов | H2: =SUM(H9:H9999) -> 879527.7 | N2: Сумма средств выплаченных по контрактам | P2: =SUM(P9:P9999) -> 307375.6 | S2: Общая сумма расторжений по контрактам/договорам | V2: =SUM(V9:V9999) -> 0
A6: № п/п | B6: Наименование муниципальной программы, национального или регионального проекта | C6: Контракт заключен в электронном виде посредством АИС "Портал поставщиков" (Да/Нет) | D6: Код бюджетной классификации | E6: № договора/контракта | F6: Дата заключения договора/контракта | G6: Предмет договора/контракта | H6: Цена договора/контракта | I6: Остаток по контракту | J6: ИНН поставщика (подрядчика, исполнителя) | K6: Поставщик (подрядчик, исполнитель) | L6: СМП и СОНО (да/нет) | M6: Сроки поставки товара (оказания услуги, выполнения работы), согласно договора/контракта; Предоставление документов на оплату Заказчику | N6: Фактическая дата поставки товара (оказания услуги, выполнения работы) | O6: Сроки оплаты согласно договора/контракта | P6: Сумма согласно документа об исполнении контракта заказчиком | Q6: Фактическая дата оплаты | R6: Изменение контракта (№, дата) | S6: Изменение контракта (увеличение цены контракта в рублях) | T6: Изменение контракта (уменьшение цены контракта в рублях) | U6: Расторжение контракта (№, дата) | V6: Сумма расторжения в рублях | W6: Примечание
A7: 1 | B7: 2 | C7: 3 | D7: 4 | E7: 5 | F7: 6 | G7: 7 | H7: 8 | I7: 9 | J7: 10 | K7: 11 | L7: 12 | M7: 13 | N7: 14 | O7: 15 | P7: 16 | Q7: 17 | R7: 18 | S7: 19 | T7: 20 | U7: 21 | V7: 22 | W7: 23
A8: 1 | B8: Муниципальная программа "Развитие образования" | D8: 902 0113 1310110490 244 | E8: № 1 | F8: 09.01.2020 | G8: Поставка бумаги для офисной техники | H8: 20000 | I8: =H8-P8 -> 0 | J8: 2353019514 | K8: ИП Котляров К.И. | M8: В течение 15 рабочих дней, со дня подписания сторонами контракта | N8: 2020-01-10 | O8: Не позднее 30 календарных дней с момента подписания акта приема-сдачи и документа на оплату | P8: 20000 | Q8: 2020-01-10 | W8: Пример
A9: 1 | B9: Муниципальная программа "Развитие образования" | C9: Нет | D9: 925 0702 0000000000 247 | E9: 1099/24 | F9: 2024-12-28 | G9: Услуги по холодному водоснабжению | H9: 27564 | I9: =IF(X9 = 1, H9 + SUM(S9:S15) - SUM(T9:T15) - SUM(P9:P15) - V9,0) -> 23758.68 | J9: 2369003044 | K9: МУП ЖКХ "Универсал плюс" Медведовского сельского поселения Тимашевского района | M9: С 01.01.2025 года по 31.12.2025 года | N9: 2025-01-31 | O9: В срок до 10-го числа месяца, следующего за расчетным месяцем | P9: 2436.74 | Q9: 2025-02-07 | X9: 1
N10: 2025-02-25 | P10: 1368.58 | Q10: 2025-03-07 | X10: 1
X11: 1
X12: 1
X13: 1
X14: 1
X15: 1
A16: 2 | B16: Муниципальная программа "Развитие образования" | C16: Нет | D16: 925 0702 0000000000 244 | E16: 20966/ТМ | F16: 2024-12-28 | G16: Услуги по обращению с твердыми коммунальными отходами | H16: 20211.75 | I16: =IF(X16 = 2, H16 + SUM(S16:S34) - SUM(T16:T34) - SUM(P16:P34) - V16,0) -> 12127.05 | J16: 2308131994 | K16: АО "Мусороуборочная компания" | M16: С 01 января 2025 года по 31 мая 2025 года | N16: 2025-02-07 | O16: До 10 числа месяца, следующего за месяцем, в котором была оказана услуга | P16: 4042.35 | Q16: 2025-02-07 | X16: 2
N17: 2025-03-03 | P17: 4042.35 | Q17: 2025-03-07 | X17: 2
X18: 2
X19: 2
X20: 2
X21: 2
X22: 2
X23: 2
X24: 2
X25: 2
X26: 2
X27: 2
X28: 2
X29: 2
X30: 2
X31: 2
X32: 2
X33: 2
X34: 2
A35: 3 | B35: Муниципальная программа "Развитие образования" | C35: Нет | D35: 925 0702 0000000000 244 | E35: 1 | F35: 2024-12-28 | G35: Услугу по предоставлению площадки для стоянки транспортного средства | H35: 72000 | I35: =IF(X35 = 3, H35 + SUM(S35:S50) - SUM(T35:T50) - SUM(P35:P50) - V35,0) -> 54000 | J35: 2369008420 | K35: ООО "Медведовские сады" | M35: С 01.01.2025 года по 31.08.2025 года | N35: 2025-02-05 | O35: В течение 10 рабочих дней с даты подписания Заказчиком документа о приемке оказанных услуг | P35: 9000 | Q35: 2025-02-13 | X35: 3
N36: 2025-02-28 | P36: 9000 | Q36: 2025-03-07 | X36: 3
X37: 3
X38: 3
X39: 3
X40: 3
X41: 3
X42: 3
X43: 3
X44: 3
X45: 3
X46: 3
X47: 3
X48: 3
X49: 3
X50: 3
A51: 4 | B51: Муниципальная программа "Развитие образования" | C51: Нет | D51: 925 0702 0000000000 244 | E51: 1 | F51: 2024-12-28 | G51: Услуги по ежедневному предрейсовому и послерейсовому медицинскому обслуживанию водителей | H51: 93100 | I51: =IF(X51 = 5, H51 + SUM(S51:S72) - SUM(T51:T72) - SUM(P51:P72) - V51,0) -> 76950 | J51: 2353017637 | K51: ООО «Сервис Юг» | M51: С 01.01.2025 года по 31.08.2025 года | N51: 2025-02-05 | O51: В течение 10 рабочих дней с момента предоставления и подписания сторонами документов, подтверждающих факт выполнения Исполнителем своих обязательств и подписания Заказчиком | P51: 7220 | Q51: 2025-02-13 | X51: 5
N52: 2025-02-28 | P52: 8930 | Q52: 2025-03-07 | X52: 5
X53: 5
X54: 5
X55: 5
X56: 5
X57: 5
X58: 5
X59: 5
X60: 5
X61: 5
X62: 5
X63: 5
X64: 5
X65: 5
X66: 5
X67: 5
X68: 5
X69: 5
X70: 5
X71: 5
X72: 5
A73: 5 | B73: Муниципальная программа "Развитие образования" | C73: Нет | D73: 925 0702 0000000000 244 | E73: 2 | F73: 2024-12-28 | G73: Услуги по ежедневному техническому предрейсовому и послерейсовому осмотру транспортного средства | H73: 93100 | I73: =IF(X73 = 6, H73 + SUM(S73:S75) - SUM(T73:T75) - SUM(P73:P75) - V73,0) -> 76950 | J73: 2353017637 | K73: ООО «Сервис Юг» | M73: С 01.01.2025 года по 31.08.2025 года | N73: 2025-02-05 | O73: В течение 10 рабочих дней с момента предоставления и подписания сторонами документов, подтверждающих факт выполнения Исполнителем своих обязательств и подписания Заказчиком | P73: 7000 | Q73: 2025-02-13 | X73: 6
N74: 2025-02-05 | P74: 220 | Q74: 2025-02-13 | X74: 6
N75: 2025-02-28 | P75: 8930 | Q75: 2025-03-07 | X75: 6
A76: 6 | B76: Муниципальная программа "Развитие образования" | C76: Нет | D76: 925 0702 0000000000 244 | E76: А-201 | F76: 2024-12-28 | G76: Работа по техническому обслуживанию (ТО) автоматических установок пожарной сигнализации | H76: 24000 | I76: =IF(X76 = 7, H76 + SUM(S76:S97) - SUM(T76:T97) - SUM(P76:P97) - V76,0) -> 20000 | J76: 2353002302 | K76: ООО "Сигнал" | M76: С 01 января 2025 года по 31 декабря 2025 года | N76: 2025-01-31 | O76: В течение 10 (десяти) рабочих дней с даты подписания Сторонами акта сдачи-приемки выполненных работ | P76: 2000 | Q76: 2025-02-13 | X76: 7
N77: 2025-02-28 | P77: 2000 | Q77: 2025-03-13 | X77: 7
X78: 7
X79: 7
X80: 7
X81: 7
X82: 7
X83: 7
X84: 7
X85: 7
X86: 7
X87: 7
X88: 7
X89: 7
X90: 7
X91: 7
X92: 7
X93: 7
X94: 7
X95: 7
X96: 7
X97: 7
A98: 7 | B98: Муниципальная программа "Развитие образования" | C98: Нет | D98: 925 0702 0000000000 244 | E98: А-202 | F98: 2024-12-28 | G98: Работы по техническому обслуживанию (ТО) объектовой станции системы пожарного мониторинга ПАК "Стрелец-Мониторинг" | H98: 36000 | I98: =IF(X98 = 8, H98 + SUM(S98:S111) - SUM(T98:T111) - SUM(P98:P111) - V98,0) -> 30000 | J98: 2353002302 | K98: ООО "Сигнал" | M98: С 01.01.2025 года по 31.12.2025 года | N98: 2025-01-31 | O98: В течение 10 (десяти) рабочих дней с даты подписания Сторонами акта сдачи-приемки выполненных работ | P98: 3000 | Q98: 2025-02-13 | X98: 8
N99: 2025-02-28 | P99: 3000 | Q99: 2025-03-13 | X99: 8
X100: 8
X101: 8
X102: 8
X103: 8
X104: 8
X105: 8
X106: 8
X107: 8
X108: 8
X109: 8
X110: 8
X111: 8
A112: 8 | B112: Муниципальная программа "Развитие образования" | C112: Нет | D112: 925 0702 0000000000 244 | E112: 34001042 | F112: 2024-12-28 | G112: Услуги по охране объекта, оборудованные комплексом технических средств охраны с выводом на пульт централизованного наблюдения (далее - ПЦН) Охраны | H112: 27331.2 | I112: =IF(X112 = 9, H112 + SUM(S112:S130) - SUM(T112:T130) - SUM(P112:P130) - V112,0) -> 22776 | J112: 2310163739 | K112: ФГКУ "УВО ВНГ России по Краснодарскому краю" | M112: С 01 января 2025 года по 31 декабря 2025 года | N112: 2025-02-20 | O112: В срок, не превышающий 10 (десяти) рабочих дней с даты подписания Заказчиком документов о приемке оказанных услуг | P112: 2277.6 | Q112: 2025-02-27 | X112: 9
N113: 2025-02-28 | P113: 2277.6 | Q113: 2025-03-13 | X113: 9
X114: 9
X115: 9
X116: 9
X117: 9
X118: 9
X119: 9
X120: 9
X121: 9
X122: 9
X123: 9
X124: 9
X125: 9
X126: 9
X127: 9
X128: 9
X129: 9
X130: 9
A131: 9 | B131: Муниципальная программа "Развитие образования" | C131: Нет | D131: 925 0702 0000000000 244 | E131: ДГ-25/11 | F131: 2024-12-28 | G131: Услуги по техническому сопровождению транспортных средств | H131: 14400 | I131: =IF(X131 = 10, H131 + SUM(S131:S147) - SUM(T131:T147) - SUM(P131:P147) - V131,0) -> 14400 | J131: 2369000660 | K131: ООО "КАНкорт" | M131: С 01 января 2025 года по 31 декабря 2025 года включительно | O131: В течение 10 (десяти) рабочих дней с момента подписания Заказчиком акта выполненных работ | X131: 10
X132: 10
X133: 10
X134: 10
X135: 10
X136: 10
X137: 10
X138: 10
X139: 10
X140: 10
X141: 10
X142: 10
X143: 10
X144: 10
X145: 10
X146: 10
X147: 10
A148: 10 | B148: Муниципальная программа "Развитие образования" | C148: Нет | D148: 925 0702 0000000000 244 | E148: 13/25 | F148: 2024-12-28 | G148: Систематическая дератизация (борьба с грызунами и контрольное наблюдение за их наличием в помещениях) | H148: 28600 | I148: =IF(X148 = 12, H148 + SUM(S148:S165) - SUM(T148:T165) - SUM(P148:P165) - V148,0) -> 28600 | J148: 2353018870 | K148: ООО "Дезинфекция" | M148: С 01.01.2025 года по 31.12.2025 года | O148: В течение 10 рабочих дней после подписания документов | X148: 12
X149: 12
X150: 12
X151: 12
X152: 12
X153: 12
X154: 12
X155: 12
X156: 12
X157: 12
X158: 12
X159: 12
X160: 12
X161: 12
X162: 12
X163: 12
X164: 12
X165: 12
A166: 11 | B166: Государственная программа Краснодарского края "Развитие образования" | C166: Нет | D166: 925 0702 0000000000 244 | E166: 153 | F166: 2024-12-28 | G166: Оказание услуг связи | H166: 28140.34 | I166: =IF(X166 = 13, H166 + SUM(S166:S185) - SUM(T166:T185) - SUM(P166:P185) - V166,0) -> 23004.27 | J166: 7707049388 | K166: ПАО "Ростелеком" | M166: С 01 января 2025 года по 31 декабря 2025 года | N166: 2025-02-03 | O166: Не позднее 10 (десяти) рабочих дней с даты подписания документов о приемке оказанных услуг | P166: 2541.78 | Q166: 2025-02-13 | X166: 13
N167: 2025-02-03 | P167: 44.45 | Q167: 2025-02-13 | X167: 13
N168: 2025-03-04 | P168: 2464.88 | Q168: 2025-03-17 | X168: 13
N169: 2025-03-04 | P169: 84.96 | Q169: 2025-03-17 | X169: 13
X170: 13
X171: 13
X172: 13
X173: 13
X174: 13
X175: 13
X176: 13
X177: 13
X178: 13
X179: 13
X180: 13
X181: 13
X182: 13
X183: 13
X184: 13
X185: 13
A186: 12 | B186: Муниципальная программа "Развитие образования" | C186: Нет | D186: 925 0702 0000000000 244 | E186: 13 | F186: 2024-12-28 | G186: Плановые и оперативные работы по сервисному (техническому) обслуживанию установок узла учета тепловой энергии | H186: 11900 | I186: =IF(X186 = 14, H186 + SUM(S186:S193) - SUM(T186:T193) - SUM(P186:P193) - V186,0) -> 8500 | J186: 235301271520 | K186: Индивидуальный предприниматель Дудкин Антон Сергеевич | M186: С 01.01.2025 года по 31.12.2025 года | N186: 2025-01-24 | O186: В течение 10 (десяти) рабочих дней с момента подписания Заказчиком Акта сдачи-приемки выполненных услуг и выставления счета Исполнителем | P186: 1700 | Q186: 2025-02-05 | X186: 14
N187: 2025-02-25 | P187: 1700 | Q187: 2025-03-03 | X187: 14
X188: 14
X189: 14
X190: 14
X191: 14
X192: 14
X193: 14
A194: 13 | B194: Муниципальная программа "Развитие образования" | C194: Нет | D194: 925 0702 0000000000 244 | E194: 2/2025 | F194: 2025-01-20 | G194: Изготовление информационно рекламной конструкции | H194: 3990 | I194: =IF(X194 = 15, H194 + SUM(S194:S208) - SUM(T194:T208) - SUM(P194:P208) - V194,0) -> 0 | J194: 233905675063 | K194: Индивидуальный предприниматель Мироненко Надежда Ивановна | M194: 14 календарных дней с даты подписания договора | N194: 2025-01-20 | O194: Не позднее 10 рабочих дней с момента подписания Заказчиком документов о приемке | P194: 3990 | Q194: 2025-01-27 | X194: 15
X195: 15
X196: 15
X197: 15
X198: 15
X199: 15
X200: 15
X201: 15
X202: 15
X203: 15
X204: 15
... 221 more rows

Sheet Ед. поставщик п.5 ч.1
F2: Сумма заключенных контрактов | H2: =SUM(H9:H9999) -> 2789345.12 | N2: Сумма средств выплаченных по контрактам | P2: =SUM(P9:P9999) -> 1100413.92 | S2: Общая сумма расторжений по контрактам/договорам | V2: =SUM(V9:V9999) -> 0
A6: № п/п | B6: Наименование муниципальной программы, национального или регионального проекта | C6: Контракт заключен в электронном виде посредством АИС "Портал поставщиков" (Да/Нет) | D6: Код бюджетной классификации | E6: № договора/контракта | F6: Дата заключения договора/контракта | G6: Предмет договора/контракта | H6: Цена договора/контракта | I6: Остаток по контракту | J6: ИНН поставщика (подрядчика, исполнителя) | K6: Поставщик (подрядчик, исполнитель) | L6: СМП и СОНО (Да/Нет) | M6: Сроки поставки товара (оказания услуги, выполнения работы), согласно контракта; Предоставление документов на оплату Закзчику | N6: Фактическая дата поставки товара (оказания услуги, выполнения работы) и (или) предоставление документов на оплату и подписание документов о приемке | O6: Сроки оплаты согласно договора/контракта | P6: Сумма согласно документа об исполнении контракта заказчиком | Q6: Фактическая дата оплаты | R6: Изменение контракта (№, дата) | S6: Изменение контракта (увеличение цены контракта в рублях) | T6: Изменение контракта (уменьшение цены контракта в рублях) | U6: Расторжение контракта (№, дата) | V6: Сумма расторжения | W6: Примечание
A7: 1 | B7: 2 | C7: 3 | D7: 4 | E7: 5 | F7: 6 | G7: 7 | H7: 8 | I7: 9 | J7: 10 | K7: 11 | L7: 12 | M7: 13 | N7: 14 | O7: 15 | P7: 16 | Q7: 17 | R7: 18 | S7: 19 | T7: 20 | U7: 21 | V7: 22 | W7: 23
A8: 1 | B8: Муниципальная программа "Развитие образования" | D8: 902 0113 1310110490 244 | E8: № 1 | F8: 2020-01-09 | G8: Поставка бумаги для офисной техники | H8: 20000 | I8: 0 | J8: 2353019514 | K8: ИП Котляров К.И. | M8: В течение 15 рабочих дней, со дня подписания сторонами контракта | N8: 2020-01-10 | O8: Не позднее 30 календарных дней с момента подписания Заказчиком и Подрядчиком акта приема-сдачи и предоставленного Подрядчиком документа на оплату | P8: 20000 | Q8: 2020-01-10 | W8: Пример
A9: 1 | B9: Муниципальная программа "Развитие образования" | C9: Да | D9: 925 0702 0000000000 244 | E9: 2024.463859 | F9: 2024-12-20 | G9: Поставка бензина АИ-92 и дизельного топлива с использованием пластиковых карт в течение января-марта 2025 года для муниципальных нужд МБОУ СОШ № 13 муниципального образования Тимашевский район | H9: 550800 | I9: =IF(X9 = 1, H9 + SUM(S9:S12) - SUM(T9:T12) - SUM(P9:P12) - V9,0) -> 279480 | J9: 2311299612 | K9: ООО "КТК" | M9: С 01 января 2025 г. по 31 марта 2025 г. | N9: 2025-02-05 | O9: В срок, не превышающий 10 рабочих дней с даты подписания покупателем отчетных документов | P9: 121754 | Q9: 2025-02-10 | X9: 1
N10: 2025-03-05 | P10: 149566 | Q10: 2025-03-07 | X10: 1
X11: 1
X12: 1
A13: 2 | B13: Муниципальная программа "Развитие образования" | C13: Нет | D13: 925 0702 0000000000 244 | E13: 13 | F13: 2024-12-28 | G13: Услуги по организации питания детей | H13: 594480 | I13: =IF(X13 = 2, H13 + SUM(S13:S24) - SUM(T13:T24) - SUM(P13:P24) - V13,0) -> 388534.2 | J13: 2353020735 | K13: ООО "Тимашевское ПРТ Райпо" | M13: С момента заключения контракта, но не ранее 09 января 2025 г. по 30 апреля 2025 г., ежедневно в соответствии с графиком работы образовательной организации, по заявке Заказчика (кроме выходных, каникулярных и праздничных дней) | N13: 2025-02-12 | O13: В течение 10 (десяти) рабочих дней после подписания документа о приемке | P13: 22311 | Q13: 2025-02-14 | X13: 2
N14: 2025-02-12 | P14: 6664.8 | Q14: 2025-02-14 | X14: 2
N15: 2025-02-12 | P15: 2240 | Q15: 2025-02-14 | X15: 2
N16: 2025-02-12 | P16: 18900 | Q16: 2025-02-14 | X16: 2
N17: 2025-02-12 | P17: 30874.64 | Q17: 2025-02-14 | X17: 2
N18: 2025-02-12 | P18: 25261.36 | Q18: 2025-02-14 | X18: 2
N19: 2025-03-10 | P19: 19791 | Q19: 2025-03-14 | X19: 2
N20: 2025-03-10 | P20: 5413.2 | Q20: 2025-03-14 | X20: 2
N21: 2025-03-10 | P21: 1820 | Q21: 2025-03-14 | X21: 2
N22: 2025-03-10 | P22: 18305 | Q22: 2025-03-20 | X22: 2
N23: 2025-03-10 | P23: 29900.49 | Q23: 2025-03-20 | X23: 2
N24: 2025-03-10 | P24: 24464.31 | Q24: 2025-03-20 | X24: 2
A25: 3 | B25: Муниципальная программа "Развитие образования" | C25: Нет | D25: 925 0702 0000000000 244 | E25: 13/1 | F25: 2024-12-28 | G25: Услуги по организации питания детей | H25: 530530 | I25: =IF(X25 = 3, H25 + SUM(S25:S40) - SUM(T25:T40) - SUM(P25:P40) - V25,0) -> 209440 | J25: 2353020735 | K25: ООО "Тимашевское ПРТ Райпо" | M25: С момента заключения контракта, но не ранее 09 января 2025 г. по 31 марта 2025 г., ежедневно в соответствии с графиком работы образовательной организации, по заявке Заказчика (кроме выходных, каникулярных и праздничных дней) | N25: 2025-02-12 | O25: В течение 10 (десяти) рабочих дней после подписания документа о приемке | P25: 174944 | Q25: 2025-02-14 | X25: 3
N26: 2025-03-10 | P26: 146146 | Q26: 2025-03-14 | X26: 3
X27: 3
X28: 3
X29: 3
X30: 3
X31: 3
X32: 3
X33: 3
X34: 3
X35: 3
X36: 3
X37: 3
X38: 3
X39: 3
X40: 3
A41: 4 | B41: Муниципальная программа "Развитие образования" | C41: Нет | D41: 925 0702 0000000000 244 | E41: 13/2 | F41: 2025-01-21 | G41: Услуги по организации питания детей | H41: 81312 | I41: =IF(X41 = 4, H41 + SUM(S41:S63) - SUM(T41:T63) - SUM(P41:P63) - V41,0) -> 61138 | J41: 2353020735 | K41: ООО "Тимашевское ПРТ Райпо" | M41: С момента заключения контракта, но не ранее 09 января 2025 г. по 23 мая 2025 г., ежедневно в соответствии с графиком работы образовательной организации, по заявке Заказчика (кроме выходных, каникулярных и праздничных дней) | N41: 2025-02-12 | O41: В течение 10 (десяти) рабочих дней после подписания документа о приемке | P41: 9486.4 | Q41: 2025-02-14 | X41: 4
N42: 2025-02-12 | P42: 2371.6 | Q42: 2025-02-14 | X42: 4
N43: 2025-03-10 | P43: 6652.8 | Q43: 2025-03-14 | X43: 4
N44: 2025-03-10 | P44: 1663.2 | Q44: 2025-03-14 | X44: 4
X45: 4
X46: 4
X47: 4
X48: 4
X49: 4
X50: 4
X51: 4
X52: 4
X53: 4
X54: 4
X55: 4
X56: 4
X57: 4
X58: 4
X59: 4
X60: 4
X61: 4
X62: 4
X63: 4
A64: 5 | B64: Муниципальная программа "Развитие образования" | C64: Нет | D64: 925 0702 0000000000 244 | E64: 3 | F64: 2025-02-12 | G64: Услуги по техническому обслуживанию и ремонту прочих автотранспортных средств | H64: 79904.12 | I64: =IF(X64 = 5, H64 + SUM(S64:S75) - SUM(T64:T75) - SUM(P64:P75) - V64,0) -> 0 | J64: 235303483777 | K64: Индивидуальный предприниматель Аполонов Алексей Аркадьевич | M64: 12.02.2025г. | N64: 2025-02-12 | O64: В течение 10 рабочих дней с даты подписания Заказчиком акта сдачи-приемки оказанных услуг | P64: 79904.12 | Q64: 2025-02-19 | X64: 5
X65: 5
X66: 5
X67: 5
X68: 5
X69: 5
X70: 5
X71: 5
X72: 5
X73: 5
X74: 5
X75: 5
A76: 6 | B76: Государственная программа Краснодарского края "Развитие образования" | C76: Нет | D76: 925 0702 0000000000 244 | E76: 45/25 | F76: 2025-02-13 | G76: Услуги по проведению предварительных и периодических медицинских осмотров (обследований) работников | H76: 170199 | I76: =IF(X76 = 7, H76 + SUM(S76:S81) - SUM(T76:T81) - SUM(P76:P81) - V76,0) -> 170199 | J76: 2353006498 | K76: ГБУЗ «Тимашевская ЦРБ» МЗ КК | M76: 25.03.2025г., 26.03.2025г. | O76: В течение 7 рабочих дней с даты подписания обеими сторонами Акта об оказании услуг | X76: 7
X77: 7
X78: 7
X79: 7
X80: 7
X81: 7
A82: 7 | B82: Государственная программа Краснодарского края "Развитие образования" | C82: Нет | D82: 925 0702 0000000000 244 | E82: 1 | F82: 2025-03-04 | G82: Поставка МФУ | H82: 140000 | I82: =IF(X82 = 24, H82 + SUM(S82:S86) - SUM(T82:T86) - SUM(P82:P86) - V82,0) -> 0 | J82: 236900329354 | K82: Индивидуальный предприниматель Татаренко Илья Михайлович | M82: В течении 15 (пятнадцати) календарных дней со дня заключения контракта | N82: 2025-03-04 | O82: Не позднее 10 рабочих дней с даты подписания Заказчиком документов о приемке | P82: 140000 | Q82: 2025-03-12 | X82: 24
X83: 24
X84: 24
X85: 24
X86: 24
A87: 8 | B87: Государственная программа Краснодарского края "Развитие образования" | C87: Нет | D87: 925 0702 0000000000 244 | E87: 096/2025-КРД | F87: 2025-03-10 | G87: Ноутбук OSIO BaseLine B150i-009b 15.6", 2024, IPS, Intel N200 1ГГц, 4-ядерный, 8ГБ DDR4, 512ГБ SSD, Intel UHD Graphics, без операционной системы, черный | H87: 61980 | I87: =IF(X87 = 25, H87 + SUM(S87:S92) - SUM(T87:T92) - SUM(P87:P92) - V87,0) -> 0 | J87: 7718979307 | K87: ООО "Ситилинк" | M87: В течении 15 (пятнадцати) рабочих дней с момента подписания контракта | N87: 2025-03-17 | O87: 10 (десять) рабочих дней с момента приема-передачи товара | P87: 61980 | Q87: 2025-03-20 | X87: 25
X88: 25
X89: 25
X90: 25
X91: 25
X92: 25
A93: 9 | B93: Муниципальная программа "Развитие образования" | C93: Да | D93: 925 0702 0000000000 244 | E93: 2025.100397 | F93: 2025-03-28 | G93: Поставка бензина АИ-92 и дизельного топлива с использованием пластиковых карт в течение апреля-июля 2024 года для муниципальных нужд МБОУ СОШ № 13 муниципального образования Тимашевский район | H93: 580140 | I93: =IF(X93 = 26, H93 + SUM(S93:S112) - SUM(T93:T112) - SUM(P93:P112) - V93,0) -> 580140 | J93: 2311299612 | K93: ООО "КТК" | M93: С 01 апреля 2025 г. по 31 июля 2025 г. | O93: В срок, не превышающий 10 рабочих дней с даты подписания покупателем отчетных документов | X93: 26
X94: 26
X95: 26
X96: 26
X97: 26
X98: 26
X99: 26
X100: 26
X101: 26
X102: 26
X103: 26
X104: 26
X105: 26
X106: 26
X107: 26
X108: 26
X109: 26
X110: 26
X111: 26
X112: 26
A113: 10 | I113: =IF(X113 = 27, H113 + SUM(S113:S118) - SUM(T113:T118) - SUM(P113:P118) - V113,0) -> 0 | X113: 27
X114: 27
X115: 27
X116: 27
X117: 27
X118: 27
A119: 11 | I119: =IF(X119 = 28, H119 + SUM(S119:S134) - SUM(T119:T134) - SUM(P119:P134) - V119,0) -> 0 | X119: 28
X120: 28
X121: 28
X122: 28
X123: 28
X124: 28
X125: 28
X126: 28
X127: 28
X128: 28
X129: 28
X130: 28
X131: 28
X132: 28
X133: 28
X134: 28
A135: 12 | I135: =IF(X135 = 29, H135 + SUM(S135:S143) - SUM(T135:T143) - SUM(P135:P143) - V135,0) -> 0 | X135: 29
X136: 29
X137: 29
X138: 29
X139: 29
X140: 29
X141: 29
X142: 29
X143: 29
A144: 13 | I144: =IF(X144 = 30, H144 + SUM(S144:S148) - SUM(T144:T148) - SUM(P144:P148) - V144,0) -> 0 | X144: 30
X145: 30
X146: 30
X147: 30
X148: 30
A149: 14 | I149: =IF(X149 = 31, H149 + SUM(S149:S177) - SUM(T149:T177) - SUM(P149:P177) - V149,0) -> 0 | X149: 31
X150: 31
X151: 31
X152: 31
X153: 31
X154: 31
X155: 31
X156: 31
X157: 31
X158: 31
X159: 31
X160: 31
X161: 31
X162: 31
X163: 31
X164: 31
X165: 31
X166: 31
X167: 31
X168: 31
X169: 31
X170: 31
X171: 31
X172: 31
X173: 31
X174: 31
X175: 31
X176: 31
X177: 31
A178: 15 | I178: =IF(X178 = 32, H178 + SUM(S178:S180) - SUM(T178:T180) - SUM(P178:P180) - V178,0) -> 0 | X178: 32
X179: 32
X180: 32
A181: 16 | I181: =IF(X181 = 33, H181 + SUM(S181:S189) - SUM(T181:T189) - SUM(P181:P189) - V181,0) -> 0 | X181: 33
X182: 33
X183: 33
X184: 33
X185: 33
X186: 33
X187: 33
X188: 33
X189: 33
A190: 17 | I190: =IF(X190 = 34, H190 + SUM(S190:S191) - SUM(T190:T191) - SUM(P190:P191) - V190,0) -> 0 | X190: 34
X191: 34
A192: 18 | I192: =IF(X192 = 35, H192 + SUM(S192:S192) - SUM(T192:T192) - SUM(P192:P192) - V192,0) -> 0 | X192: 35
A193: 19 | I193: =IF(X193 = 36, H193 + SUM(S193:S193) - SUM(T193:T193) - SUM(P193:P193) - V193,0) -> 0 | X193: 36
A194: 20 | I194: =IF(X194 = 37, H194 + SUM(S194:S195) - SUM(T194:T195) - SUM(P194:P195) - V194,0) -> 0 | X194: 37
X195: 37
A196: 21 | I196: =IF(X196 = 38, H196 + SUM(S196:S206) - SUM(T196:T206) - SUM(P196:P206) - V196,0) -> 0 | X196: 38
X197: 38
X198: 38
X199: 38
X200: 38
X201: 38
X202: 38
X203: 38
X204: 38
... 113 more rows

Sheet Ед.поставщик за искл. п.4,5 ч.1
E2: Сумма заключенных контрактов | G2: =SUM(G9:G10002) -> 3844895.05 | L2: Сумма средств выплаченных по контрактам | N2: =SUM(N9:N10002) -> 659449.86 | Q2: Общая сумма расторжений по контрактам/договорам | T2: =SUM(T9:T10002) -> 0
A6: № п/п | B6: № в реестре контрактов | C6: Код бюджетной классификации | D6: № контракта | E6: Дата заключения | F6: Предмет договора/контракта | G6: Цена контракта (Объем финансового обеспечения подлежащий к оплате в текущем фин. году) | H6: Остаток по контракту | I6: ИНН поставщика (подрядчика, исполнителя) | J6: Поставщик (подрядчик, исполнитель) | K6: Сроки поставки товара (оказания услуги, выполнения работы), согласно контракта; Предоставление документов на оплату Закзчику | L6: Фактическая дата поставки товара (оказания услуги, выполнения работы) и (или) предоставление документов на оплату и подписание документов о приемке | M6: Сроки оплаты согласно договора/контракта | N6: Сумма согласно документа об исполнении контракта заказчиком | O6: Фактическая дата оплаты | P6: Изменение контракта (№, дата) | Q6: Изменение контракта (увеличение цены контракта в рублях) | R6: Изменение контракта (уменьшение цены контракта в рублях) | S6: Расторжение контракта (№, дата) | T6: Сумма расторжения | U6: Примечание
A7: 1 | B7: 2 | C7: 3 | D7: 4 | E7: 5 | F7: 6 | G7: 7 | H7: 8 | I7: 9 | J7: 10 | K7: 11 | L7: 12 | M7: 13 | N7: 14 | O7: 15 | P7: 16 | Q7: 17 | R7: 18 | S7: 19 | T7: 20 | U7: 21
A8: 1 | B8: 3235301125818100175 | C8: 9020104 5210000190244 | D8: 123 | E8: 2019-12-24 | F8: Поставка электрической энергии | G8: 100000 | H8: 90000 | I8: 2308091759 | J8: АО "НЭСК" | K8: Поставка электрической энергии осуществляется постоянно, в течение срока действия контракта | L8: 2019-12-02 | M8: До 10 числа расчетного месяца в размере 30%, до 25 числа расчетного месяца 40%, до 18 числа месяца, следующего за расчетным | N8: 10000 | O8: 2019-01-24 | U8: Пример
A9: 1 | B9: 3235301526024000012 | C9: 925 0702 0000000000 247 | D9: 23070500309 | E9: 2024-12-26 | F9: Услуги по передаче электроэнергии | G9: 789929.46 | H9: =IF(V9 = 1, G9 + SUM(Q9:Q39) - SUM(R9:R39) - SUM(N9:N39) - T9,0) -> 687775.51 | I9: 2308119595 | J9: ПАО "ТНС энерго Кубань" | K9: Поставка электрической энергии осуществляется постоянно, в течение срока действия контракта с 01.01.2025г. по 31.12.2025г. | L9: 2025-02-12 | M9: Предоплата - до 10 и 25 числа месяца, в котором осуществляется потребление электрической энергии; фактически потребленая электрическая энергия до 18 числа месяца, следующего за месяцем, за ктотрый осуществляется оплата | N9: 83141.72 | O9: 2025-02-18 | P9: №1 от 07.03.2025 | Q9: 106821.54 | V9: 1
L10: 2025-02-01 | N10: 36847.09 | O10: 2025-02-24 | V10: 1
L11: 2025-02-01 | N11: 27103.44 | O11: 2025-02-24 | V11: 1
V12: 1
V13: 1
V14: 1
V15: 1
V16: 1
V17: 1
V18: 1
V19: 1
V20: 1
V21: 1
V22: 1
V23: 1
V24: 1
V25: 1
V26: 1
V27: 1
V28: 1
V29: 1
V30: 1
V31: 1
V32: 1
V33: 1
V34: 1
V35: 1
V36: 1
L37: 2025-03-01 | N37: 27635.32 | O37: 2025-03-03 | V37: 1
L38: 2025-03-14 | N38: 4175.22 | O38: 2025-03-17 | V38: 1
L39: 2025-03-01 | N39: 30072.7 | O39: 2025-03-17 | V39: 1
A40: 2 | B40: 3235301526024000011 | C40: 925 0702 0000000000 247 | D40: 1905 | E40: 2024-12-26 | F40: Энергия тепловая, отпущенная котельными | G40: 931369.94 | H40: =IF(V40 = 2, G40 + SUM(Q40:Q95) - SUM(R40:R95) - SUM(N40:N95) - T40,0) -> 555303.63 | I40: 2312054894 | J40: АО "АТЭК" | K40: Поставка тепловой энергии производится в соответствии с утвержденным потребителю планом и помесячным графиком теплоснабжения, в течение срока действия контракта с 01.01.2025г. по 31.12.2025г. | M40: До 25 числа месяца, следующего за месяцем, за ктотрый осуществляется оплата | V40: 2
V41: 2
V42: 2
V43: 2
V44: 2
V45: 2
V46: 2
V47: 2
V48: 2
V49: 2
V50: 2
V51: 2
V52: 2
V53: 2
V54: 2
V55: 2
V56: 2
V57: 2
V58: 2
V59: 2
V60: 2
V61: 2
V62: 2
V63: 2
V64: 2
V65: 2
V66: 2
V67: 2
V68: 2
V69: 2
V70: 2
V71: 2
V72: 2
V73: 2
V74: 2
V75: 2
V76: 2
V77: 2
V78: 2
V79: 2
V80: 2
V81: 2
V82: 2
V83: 2
V84: 2
V85: 2
V86: 2
V87: 2
V88: 2
V89: 2
V90: 2
V91: 2
V92: 2
V93: 2
L94: 2025-02-17 | N94: 205397.95 | O94: 2025-02-19 | P94: №1 от 13.02.2025 | Q94: 74408.06 | V94: 2
L95: 2025-03-19 | N95: 245076.42 | O95: 2025-03-24 | V95: 2
A96: 3 | B96: 3235301526025000001 | C96: 925 0702 0000000000 244 | D96: АО172180 | E96: 2025-02-20 | F96: Поставка учебной литературы для муниципальных нужд МБОУ СОШ № 13 муниципального образования Тимашевский район | G96: 1829550.36 | H96: =IF(V96 = 11, G96 + SUM(Q96:Q101) - SUM(R96:R101) - SUM(N96:N101) - T96,0) -> 1829550.36 | I96: 7715995942 | J96: АО "ИЗДАТЕЛЬСТВО "ПРОСВЕЩЕНИЕ" | K96: До 30 июня 2025 г. | M96: В течение 10 рабочих дней со дня подписания Заказчиком УПД | V96: 11
V97: 11
V98: 11
V99: 11
V100: 11
V101: 11
A102: 4 | B102: 3235301526025000002 | C102: 925 0702 0000000000 244 | D102: АО174439 | E102: 2025-02-21 | F102: Поставка учебной литературы для муниципальных нужд МБОУ СОШ № 13 муниципального образования Тимашевский район | G102: 294045.29 | H102: =IF(V102 = 12, G102 + SUM(Q102:Q104) - SUM(R102:R104) - SUM(N102:N104) - T102,0) -> 294045.29 | I102: 7715995942 | J102: АО "ИЗДАТЕЛЬСТВО "ПРОСВЕЩЕНИЕ" | K102: До 30 июня 2025 г. | M102: В течение 10 рабочих дней со дня подписания Заказчиком УПД | V102: 12
V103: 12
V104: 12
A105: 5 | H105: =IF(V105 = 13, G105 + SUM(Q105:Q108) - SUM(R105:R108) - SUM(N105:N108) - T105,0) -> 0 | V105: 13
V106: 13
V107: 13
V108: 13
A109: 6 | H109: =IF(V109 = 14, G109 + SUM(Q109:Q109) - SUM(R109:R109) - SUM(N109:N109) - T109,0) -> 0 | V109: 14
V110: 15

Sheet Состоявшиеся аукционы
E2: Сумма начальных (максимальных) цен контрактов | G2: =SUM(G9:G9999) -> 740880 | O2: Сумма заключенных контрактов | Q2: =SUM(Q9:Q9999) -> 674200.8 | T2: Сумма средств выплаченных по контрактам | V2: =SUM(V9:V9999) -> 270597.6 | Y2: Общая сумма расторжений по контрактам/договорам | AB2: =SUM(AB9:AB9999) -> 0
A6: № п/п | B6: Наименование муниципальной программы, национального или регионального проекта | C6: ИКЗ (Идентификационный код закупки) | D6: Код бюджетной классификации | E6: № извещения | F6: Объект закупки | G6: Н(М)ЦК | H6: Экономия | I6: Количество поданных заявок | J6: Количество заявок признанные несоответствующими | K6: СМП и СОНО | L6: № в реестре контрактов | M6: № контракта | N6: Дата заключения | O6: ИНН поставщика (подрядчика, исполнителя) | P6: Поставщик (подрядчик, исполнитель) | Q6: Цена контракта | R6: Остаток по контракту | S6: Сроки поставки товара (оказания услуги, выполнения работы), согласно контракта | T6: Фактическая дата поставки товара (оказания услуги, выполнения работы) и (или) предоставление документов на оплату и подписание документов о приемке | U6: Сроки оплаты согласно контракта | V6: Сумма согласно документа об исполнении контракта заказчиком | W6: Фактическая дата оплаты | X6: Изменение контракта (№, дата) | Y6: Изменение контракта (увеличение цены контракта в рублях) | Z6: Изменение контракта (уменьшение цены контракта в рублях) | AA6: Расторжение контракта (№, дата) | AB6: Сумма расторжения | AC6: Примечание
A7: 1 | B7: 2 | C7: 3 | D7: 4 | E7: 5 | F7: 6 | G7: 7 | H7: 8 | I7: 9 | J7: 10 | K7: 11 | L7: 12 | M7: 13 | N7: 14 | O7: 15 | P7: 16 | Q7: 17 | R7: 18 | S7: 19 | T7: 20 | U7: 21 | V7: 22 | W7: 23 | X7: 24 | Y7: 25 | Z7: 26 | AA7: 27 | AB7: 28 | AC7: 29
A8: 1 | C8: 193235301125823530100103000010000244 | D8: 902 0113 1210310010 244 | E8: 0818300019919000194 | F8: Поставка картриджа и тонер-картриджей | G8: 15500.01 | H8: =G8-Q8 -> 6725 | I8: 6 | J8: 0 | K8: Нет | L8: 3235301125819000079 | M8: Ф.2019.412162 | N8: 2019-07-09 | O8: 3443923035 | P8: ООО "АНАЛИТИК ЦЕНТР" | Q8: 8775.01 | R8: =Q8-V8 -> 0 | S8: В течение 20 рабочих дней со дня заключения сторонами муниципального контракта | T8: 2019-07-31 | U8: Не позднее 30 календарных дней с момента подписания Заказчиком документа о приемке выполненных работ и представленного Подрядчиком документа на оплату | V8: 8775.01 | W8: 2019-08-19 | AC8: Пример
A9: 1 | B9: Муниципальная программа "Развитие образования" | C9: 243235301526023530100100340018010244 | D9: 925 0702 0000000000 244 | E9: 0818300019924000328 | F9: Услуги частной охраны (Выставление поста охраны) | G9: 740880 | H9: =IF(AD9 = 2, G9 - Q9,0) -> 66679.2 | I9: 2 | J9: 0 | K9: Да | L9: 3235301526024000010 | M9: 08183000199240003280018 | N9: 2024-12-23 | O9: 2304067057 | P9: ООО ЧОО "ЛЕГИОН" | Q9: 674200.8 | R9: =IF(AD9 = 2, Q9 + SUM(Y9:Y23) - SUM(Z9:Z23) - SUM(V9:V23) - AB9,0) -> 403603.2 | S9: С 00:00 МВК 1 января 2025 года по 23:59 МВК 27 мая 2025 года включительно. | T9: 2025-02-11 | U9: В срок не более 7 (семи) рабочих дней с даты подписания Заказчиком документа о приемке | V9: 142178.4 | W9: 2025-02-13 | AD9: 2
T10: 2025-03-04 | V10: 128419.2 | W10: 2025-03-10 | AD10: 2
AD11: 2
AD12: 2
AD13: 2
AD14: 2
AD15: 2
AD16: 2
AD17: 2
AD18: 2
AD19: 2
AD20: 2
AD21: 2
AD22: 2
AD23: 2
A24: 2 | H24: =IF(AD24 = 3, G24 - Q24,0) -> 0 | R24: =IF(AD24 = 3, Q24 + SUM(Y24:Y24) - SUM(Z24:Z24) - SUM(V24:V24) - AB24,0) -> 0 | AD24: 3
A25: 3 | H25: =IF(AD25 = 4, G25 - Q25,0) -> 0 | R25: =IF(AD25 = 4, Q25 + SUM(Y25:Y25) - SUM(Z25:Z25) - SUM(V25:V25) - AB25,0) -> 0 | AD25: 4
A26: 4 | H26: =IF(AD26 = 5, G26 - Q26,0) -> 0 | R26: =IF(AD26 = 5, Q26 + SUM(Y26:Y29) - SUM(Z26:Z29) - SUM(V26:V29) - AB26,0) -> 0 | AD26: 5
AD27: 5
AD28: 5
AD29: 5
A30: 5 | H30: =IF(AD30 = 6, G30 - Q30,0) -> 0 | R30: =IF(AD30 = 6, Q30 + SUM(Y30:Y47) - SUM(Z30:Z47) - SUM(V30:V47) - AB30,0) -> 0 | AD30: 6
AD31: 6
AD32: 6
AD33: 6
AD34: 6
AD35: 6
AD36: 6
AD37: 6
AD38: 6
AD39: 6
AD40: 6
AD41: 6
AD42: 6
AD43: 6
AD44: 6
AD45: 6
AD46: 6
AD47: 6
AD48: 7

Sheet Несостоявшиеся аукционы
E2: Сумма начальных (максимальных) цен контрактов | G2: =SUM(G9:G10004) -> 3314740 | O2: Сумма заключенных контрактов | Q2: =SUM(Q9:Q10004) -> 3314740 | T2: Сумма средств выплаченных по контрактам | V2: =SUM(V9:V10004) -> 1504590.62 | Y2: Общая сумма расторжений по контрактам/договорам | AB2: =SUM(AB9:AB10004) -> 0
A6: № п/п | B6: Наименование муниципальной программы, национального или регионального проекта | C6: ИКЗ (Идентификационный код закупки) | D6: Код бюджетной классификации | E6: № извещения | F6: Объект закупки | G6: Н(М)ЦК | H6: Экономия | I6: Количество поданных заявок | J6: Количество заявок признанные несоответствующими | K6: СМП и СОНО | L6: № в реестре контрактов | M6: № контракта | N6: Дата заключения | O6: ИНН поставщика (подрядчика, исполнителя) | P6: Поставщик (подрядчик, исполнитель) | Q6: Цена контракта (Объем финансового обеспечения подлежащий к оплате в текущем фин. году) | R6: Остаток по контракту | S6: Сроки поставки товара (оказания услуги, выполнения работы), согласно контракта | T6: Фактическая дата поставки товара (оказания услуги, выполнения работы) и (или) предоставление документов на оплату и подписание документов о приемке | U6: Сроки оплаты согласно контракта | V6: Сумма согласно документа об исполнении контракта заказчиком | W6: Фактическая дата оплаты | X6: Изменение контракта (№, дата) | Y6: Изменение контракта (увеличение цены контракта в рублях) | Z6: Изменение контракта (уменьшение цены контракта в рублях) | AA6: Расторжение контракта (№, дата) | AB6: Сумма расторжения | AC6: Примечание
A7: 1 | B7: 2 | C7: 3 | D7: 4 | E7: 5 | F7: 6 | G7: 7 | H7: 8 | I7: 9 | J7: 10 | K7: 11 | L7: 12 | M7: 13 | N7: 14 | O7: 15 | P7: 16 | Q7: 17 | R7: 18 | S7: 19 | T7: 20 | U7: 21 | V7: 22 | W7: 23 | X7: 24 | Y7: 25 | Z7: 26 | AA7: 27 | AB7: 28 | AC7: 29
A8: 1 | C8: 193235301125823530100103000010000244 | D8: 902 0113 1210310010 244 | E8: 0818300019919000194 | F8: Поставка картриджа и тонер-картриджей | G8: 15500.01 | H8: =G8-Q8 -> 6725 | I8: 6 | J8: 0 | K8: Нет | L8: 3235301125819000079 | M8: Ф.2019.412162 | N8: 2019-07-09 | O8: 3443923035 | P8: ООО "АНАЛИТИК ЦЕНТР" | Q8: 8775.01 | R8: =Q8-V8 -> 0 | S8: В течение 20 рабочих дней со дня заключения сторонами муниципального контракта | T8: 2019-07-31 | U8: Не позднее 30 календарных дней с момента подписания Заказчиком документа о приемке выполненных работ и представленного Подрядчиком документа на оплату | V8: 8775.01 | W8: 2019-08-19 | AC8: Пример
A9: 1 | B9: Муниципальная программа "Развитие образования" | C9: 243235301526023530100100330015629244 | D9: 925 0702 0000000000 244 | E9: 0818300019924000321 | F9: Оказание услуги по организации питания учащихся муниципальных бюджетных общеобразовательных учреждений средних общеобразовательных школ муниципального образования Тимашевский район. | G9: 3314740 | H9: =IF(AD9 = 6, G9 - Q9,0) -> 0 | I9: 1 | J9: 0 | K9: Да | L9: 3235301526024000009 | M9: 08183000199240003210016 | N9: 2024-12-16 | O9: 2353020735 | P9: ООО "ТИМАШЕВСКОЕ ПРТ РАЙПО" | Q9: 3314740 | R9: =IF(AD9 = 6, Q9 + SUM(Y9:Y34) - SUM(Z9:Z34) - SUM(V9:V34) - AB9,0) -> 1810149.38 | S9: С момента заключения контракта, но не ранее 09 января 2025 г. по 23 мая 2025 г., ежедневно в соответствии с графиком работы образовательной организации, по заявке Заказчика (кроме выходных, каникулярных и праздничных дней) | T9: 2025-02-03 | U9: В течение 7 (семи) рабочих дней после подписания документа о приемке | V9: 60550 | W9: 2025-02-10 | AD9: 6
T10: 2025-02-03 | V10: 188102.44 | W10: 2025-02-10 | AD10: 6
T11: 2025-02-03 | V11: 12006.66 | W11: 2025-02-10 | AD11: 6
T12: 2025-02-14 | V12: 83965 | W12: 2025-02-19 | AD12: 6
T13: 2025-02-14 | V13: 260842.63 | W13: 2025-02-21 | AD13: 6
T14: 2025-02-14 | V14: 16649.7 | W14: 2025-02-21 | AD14: 6
T15: 2025-02-24 | V15: 228876.09 | W15: 2025-02-26 | AD15: 6
T16: 2025-02-24 | V16: 14609.26 | W16: 2025-02-26 | AD16: 6
T17: 2025-02-24 | V17: 73675 | W17: 2025-02-26 | AD17: 6
AD18: 6
AD19: 6
AD20: 6
AD21: 6
AD22: 6
AD23: 6
AD24: 6
AD25: 6
AD26: 6
AD27: 6
AD28: 6
T29: 2025-03-10 | V29: 10479.8 | W29: 2025-03-12 | AD29: 6
T30: 2025-03-10 | V30: 164181.9 | W30: 2025-03-12 | AD30: 6
T31: 2025-03-10 | V31: 52850 | W31: 2025-03-12 | AD31: 6
T32: 2025-03-26 | V32: 243772.07 | W32: 2025-03-27 | AD32: 6
T33: 2025-03-26 | V33: 78470 | W33: 2025-03-27 | AD33: 6
T34: 2025-03-26 | V34: 15560.07 | W34: 2025-03-27 | AD34: 6
A35: 2 | H35: =IF(AD35 = 7, G35 - Q35,0) -> 0 | R35: =IF(AD35 = 7, Q35 + SUM(Y35:Y36) - SUM(Z35:Z36) - SUM(V35:V36) - AB35,0) -> 0 | AD35: 7
AD36: 7
H37: =IF(AD37 = 6, G37 - Q37,0) -> 0 | R37: =IF(AD37 = 6, Q37 + SUM(Y37:Y37) - SUM(Z37:Z37) - SUM(V37:V37) - AB37,0) -> 0 | AD37: 8

Sheet Иные конкурентные закупки
E2: Сумма начальных (максимальных) цен контрактов | G2: =SUM(G9:G9999) -> 0 | O2: Сумма заключенных контрактов | Q2: =SUM(Q9:Q9999) -> 0 | T2: Сумма средств выплаченных по контрактам | V2: =SUM(V9:V9999) -> 0 | Y2: Общая сумма расторжений по контрактам/договорам | AB2: =SUM(AB9:AB9999) -> 0
A6: № п/п | B6: Наименование муниципальной программы, национального или регионального проекта | C6: ИКЗ (Идентификационный код закупки) | D6: Код бюджетной классификации | E6: № извещения | F6: Объект закупки | G6: Н(М)ЦК | H6: Экономия | I6: Количество поданных заявок | J6: Количество заявок признанные несоответствующими | K6: СМП и СОНО | L6: № в реестре контрактов | M6: № контракта | N6: Дата заключения | O6: ИНН поставщика (подрядчика, исполнителя) | P6: Поставщик (подрядчик, исполнитель) | Q6: Цена контракта | R6: Остаток по контракту | S6: Сроки поставки товара (оказания услуги, выполнения работы), согласно контракта | T6: Фактическая дата поставки товара (оказания услуги, выполнения работы) и (или) предоставление документов на оплату и подписание документов о приемке | U6: Сроки оплаты согласно контракта | V6: Сумма согласно документа об исполнении контракта заказчиком | W6: Фактическая дата оплаты | X6: Изменение контракта (№, дата) | Y6: Изменение контракта (увеличение цены контракта в рублях) | Z6: Изменение контракта (уменьшение цены контракта в рублях) | AA6: Расторжение контракта (№, дата) | AB6: Сумма расторжения | AC6: Примечание
A7: 1 | B7: 2 | C7: 3 | D7: 4 | E7: 5 | F7: 6 | G7: 7 | H7: 8 | I7: 9 | J7: 10 | K7: 11 | L7: 12 | M7: 13 | N7: 14 | O7: 15 | P7: 16 | Q7: 17 | R7: 18 | S7: 19 | T7: 20 | U7: 21 | V7: 22 | W7: 23 | X7: 24 | Y7: 25 | Z7: 26 | AA7: 27 | AB7: 28 | AC7: 29
A8: 1 | C8: 193235301125823530100103000010000244 | D8: 902 0113 1210310010 244 | E8: 0818300019919000194 | F8: Поставка картриджа и тонер-картриджей | G8: 15500.01 | H8: =G8-Q8 -> 6725 | I8: 6 | J8: 0 | K8: Нет | L8: 3235301125819000079 | M8: Ф.2019.412162 | N8: 2019-07-09 | O8: 3443923035 | P8: ООО "АНАЛИТИК ЦЕНТР" | Q8: 8775.01 | R8: =Q8-V8 -> 0 | S8: В течение 20 рабочих дней со дня заключения сторонами муниципального контракта | T8: 2019-07-31 | U8: Не позднее 30 календарных дней с момента подписания Заказчиком документа о приемке выполненных работ и представленного Подрядчиком документа на оплату | V8: 8775.01 | W8: 2019-08-19 | AC8: Пример
A9: 1 | H9: =IF(AD9 = 1, G9 - Q9,0) -> 0 | R9: =IF(AD9 = 1, Q9 + SUM(Y9:Y64) - SUM(Z9:Z64) - SUM(V9:V64) - AB9,0) -> 0 | AD9: 1
AD10: 1
AD11: 1
AD12: 1
AD13: 1
AD14: 1
AD15: 1
AD16: 1
AD17: 1
AD18: 1
AD19: 1
AD20: 1
AD21: 1
AD22: 1
AD23: 1
AD24: 1
AD25: 1
AD26: 1
AD27: 1
AD28: 1
AD29: 1
AD30: 1
AD31: 1
AD32: 1
AD33: 1
AD34: 1
AD35: 1
AD36: 1
AD37: 1
AD38: 1
AD39: 1
AD40: 1
AD41: 1
AD42: 1
AD43: 1
AD44: 1
AD45: 1
AD46: 1
AD47: 1
AD48: 1
AD49: 1
AD50: 1
AD51: 1
AD52: 1
AD53: 1
AD54: 1
AD55: 1
AD56: 1
AD57: 1
AD58: 1
AD59: 1
AD60: 1
AD61: 1
AD62: 1
AD63: 1
AD64: 1
A65: 2 | H65: =IF(AD65 = 2, G65 - Q65,0) -> 0 | R65: =IF(AD65 = 2, Q65 + SUM(Y65:Y73) - SUM(Z65:Z73) - SUM(V65:V73) - AB65,0) -> 0 | AD65: 2
AD66: 2
AD67: 2
AD68: 2
AD69: 2
AD70: 2
AD71: 2
AD72: 2
AD73: 2
AD74: 3

Sheet Настройки (hidden)
A1: 425 | B1: 122 | C1: 9 | D1: Ед. поставщик п.4 ч.1 | F1: Index | G1: Index | H1: Index | I1: Index | J1: Index | K1: Index
A2: TekStrokaP4 | B2: TekNomerP4 | C2: NachStrokaP4 | F2: 206 | G2: 64 | H2: 14 | I2: 6 | J2: 7 | K2: 2
F3: Index+1 | G3: Index+1 | H3: Index+1 | I3: Index+1 | J3: Index+1 | K3: Index+1
A4: 316 | B4: 47 | C4: 9 | D4: Ед. поставщик п.5 ч.1 | F4: 207 | G4: 65 | H4: 15 | I4: 7 | J4: 8 | K4: 3
A5: TekStrokaP5 | B5: TekNomerP5 | C5: NachStrokaP5
A7: 109 | B7: 6 | C7: 9 | D7: Ед.поставщик за искл. п.4,5 ч.1
A8: TekStrokaSt93 | B8: TekNomerSt93 | C8: NachStrokaSt93
A10: 47 | B10: 5 | C10: 9 | D10: Состоявшиеся аукционы
A11: TekStrokaSEA | B11: TekNomerSEA | C11: NachStrokaSEA
A13: 36 | B13: 2 | C13: 9 | D13: Несостоявшиеся аукционы
A14: TekStrokaNEA | B14: TekNomerNEA | C14: NachStrokaNEA
A16: 73 | B16: 2 | C16: 9 | D16: Иные конкурентные закупки
A17: TekStrokaIKZ | B17: TekNomerIKZ | C17: NachStrokaIKZ
